[Event "World Junior U20 Girls 2018"]
[Site "Gebze"]
[Date "2018.09.07"]
[Round "3"]
[White "Salah, Nadezhda"]
[Black "Beydullayeva, Govhar"]
[Result "1-0"]
[ECO "A40"]
[WhiteElo "1918"]
[BlackElo "2202"]
[Annotator "NA"]
[PlyCount "109"]
[EventDate "2018.09.05"]
[EventType "swiss"]
[EventCountry "TUR"]
[SourceTitle "playchess.com"]
[Source "ChessBase"]
[SourceQuality "1"]
[TimeControl "40/5400+30:1800+30"]

1. d4 {[%emt 0:00:30]} e6 {[%emt 0:00:30]} 2. c4 {[%emt 0:00:30]} b6 {[%emt 0:00:00]} 3. e4 {[%emt 0:01:30]} Bb7 {[%emt 0:00:00]} 4. Bd3 {[%emt 0:00:00]} Bb4+ {[%emt 0:03:30]} 5. Kf1 {[%emt 0:02:00]} Be7 {[%emt 0:12:30]} 6. Nc3 {[%emt 0:12:30]} d5 {[%emt 0:02:30]} 7. cxd5 {[%emt 0:00:30]} exd5 {[%emt 0:00:30]} 8. e5 {[%emt 0:00:30]} c5 {[%emt 0:26:00]} 9. Qg4 {[%emt 0:26:30]} g6 {[%emt 0:09:30]} 10. Qf3 $11 {[%emt 0:30:30]} (10. Nf3 $16) 10... cxd4 {[%emt 0:21:30]} 11. Bb5+ {[%emt 0:01:30]} Kf8 {[%emt 0:04:30]} 12. Nce2 {[%emt 0:01:30]} Bc5 {[%emt 0:17:42]} 13. b4 {[%emt 0:11:30]} Bxb4 {[%emt 0:00:26]} 14. Nxd4 {[%emt 0:03:30]} Qe7 {[%emt 0:04:00]} 15. Bb2 {[%emt 0:08:40]} a6 {[%emt 0:01:25]} 16. Bd3 {[%emt 0:04:45]} Nd7 {[%emt 0:03:43]} 17. Qg3 {[%emt 0:07:57]} Nc5 {[%emt 0:02:58]} 18. Nge2 Ne4 {[%emt 0:03:12]} 19. Bxe4 {[%emt 0:02:13]} dxe4 {[%emt 0:00:00]} 20. h4 {[%emt 0:00:23]} h5 {[%emt 0:04:10]} 21. Nf4 {[%emt 0:00:40]} Nh6 {[%emt 0:00:31]} 22. Nxg6+ {[%emt 0:00:50]} fxg6 {[%emt 0:00:30]} 23. Qxg6 {[%emt 0:00:04]} Bd5 {[%emt 0:00:17]} 24. e6 {[%emt 0:00:16]} Qg7 {[%emt 0:00:50]} 25. Qxg7+ {[%emt 0:00:35]} Kxg7 {[%emt 0:00:30]} 26. Nc2+ {[%emt 0:00:16]} Kg6 {[%emt 0:00:01]} 27. Bxh8 {[%emt 0:00:32]} Bc4+ {[%emt 0:01:05]} 28. Kg1 {[%emt 0:00:03]} Bc5 {[%emt 0:00:08]} 29. Bd4 {[%emt 0:00:16]} Bxe6 {[%emt 0:00:22]} 30. Bxc5 {[%emt 0:00:22]} bxc5 {[%emt 0:00:30]} 31. Kh2 {[%emt 0:00:55]} Rf8 {[%emt 0:00:23]} 32. Rhf1 {[%emt 0:02:01]} Bc4 {[%emt 0:00:14]} 33. Rfc1 {[%emt 0:00:06]} Rxf2 {[%emt 0:00:44]} 34. Ne3 {[%emt 0:00:03]} Bd3 {[%emt 0:00:59]} 35. Rxc5 {[%emt 0:00:15]} Re2 {[%emt 0:01:06]} 36. Rg5+ {[%emt 0:00:02]} Kh7 {[%emt 0:00:02]} 37. Nd5 {[%emt 0:00:36]} Ng4+ {[%emt 0:00:30]} 38. Kg3 {[%emt 0:00:08]} Kh6 {[%emt 0:00:18]} 39. Rc1 {[%emt 0:00:26]} Rc2 {[%emt 0:00:00]} 40. Rxc2 {[%emt 0:00:00]} Bxc2 {[%emt 0:00:00]} 41. Nf4 {[%emt 0:02:06]} Ne3 {[%emt 0:01:24]} 42. Nxh5 {[%emt 0:07:30]} Bd3 {[%emt 0:14:06]} 43. Nf4 {[%emt 0:06:15]} Bc4 {[%emt 0:01:05]} 44. a4 {[%emt 0:01:45]} Nf1+ {[%emt 0:04:17]} 45. Kg4 {[%emt 0:01:59]} Ne3+ {[%emt 0:02:27]} 46. Kg3 {[%emt 0:00:48]} Nf1+ {[%emt 0:00:06]} 47. Kf2 {[%emt 0:00:12]} e3+ {[%emt 0:00:10]} 48. Kf3 {[%emt 0:00:00]} Bb3 {[%emt 0:01:09]} 49. Rg6+ {[%emt 0:00:59]} Kh7 {[%emt 0:00:04]} 50. Rxa6 {[%emt 0:00:21]} Bd1+ {[%emt 0:01:28]} 51. Ne2 {[%emt 0:00:22]} Bb3 {[%emt 0:00:29]} 52. Ra7+ {[%emt 0:01:14]} Kg6 {[%emt 0:00:14]} 53. Nf4+ {[%emt 0:00:13]} Kf5 {[%emt 0:00:30]} 54. Ra5+ {[%emt 0:00:30]} Kf6 {[%emt 0:00:00]} 55. Nd5+ {[%emt 0:00:14]} 1-0

[Event "World Junior U20 Girls 2018"]
[Site "Gebze"]
[Date "2018.09.07"]
[Round "3"]
[White "Ince, Safiye Oyku"]
[Black "Lingur, Zalina"]
[Result "0-1"]
[ECO "B92"]
[WhiteElo "1905"]
[BlackElo "2061"]
[Annotator "NA"]
[PlyCount "82"]
[EventDate "2018.09.05"]
[EventType "swiss"]
[EventCountry "TUR"]
[SourceTitle "playchess.com"]
[Source "ChessBase"]
[SourceQuality "1"]
[TimeControl "40/5400+30:1800+30"]

1. e4 {[%emt 0:00:30]} c5 {[%emt 0:00:30]} 2. Nf3 {[%emt 0:00:30]} d6 {[%emt 0:00:00]} 3. d4 {[%emt 0:00:00]} cxd4 {[%emt 0:00:00]} 4. Nxd4 {[%emt 0:00:00]} Nf6 {[%emt 0:00:30]} 5. Nc3 {[%emt 0:00:00]} a6 {[%emt 0:02:30]} 6. a4 {[%emt 0:00:00]} e5 {[%emt 0:00:30]} 7. Nb3 {[%emt 0:00:00]} Be6 {[%emt 0:00:30]} 8. Be2 {[%emt 0:02:00]} Be7 {[%emt 0:03:30]} 9. O-O {[%emt 0:00:30]} O-O {[%emt 0:01:30]} 10. f4 {[%emt 0:02:30]} exf4 {[%emt 0:04:30]} 11. Bxf4 {[%emt 0:00:00]} Nc6 {[%emt 0:01:30]} 12. Kh1 {[%emt 0:04:00]} Ne5 {[%emt 0:36:00]} 13. Nd4 $11 {[%emt 0:22:30] LiveBook: 5 Games} Qc7 {[%emt 0:03:30]} 14. Qe1 {[%emt 0:07:30]} Ng6 {[%emt 0:13:30]} 15. Bg5 {[%emt 0:03:30]} Qc5 {[%emt 0:08:30]} 16. Qd2 {[%emt 0:15:30]} Ne5 {[%emt 0:07:30]} 17. Nf5 {[%emt 0:03:30]} Bxf5 {[%emt 0:01:30]} 18. Rxf5 {[%emt 0:02:30]} Qc6 {[%emt 0:02:30]} 19. Bxf6 {[%emt 0:02:30]} Bxf6 {[%emt 0:00:30]} 20. Rxf6 {[%emt 0:00:30]} gxf6 {[%emt 0:02:30]} 21. Qh6 {[%emt 0:17:30]} Rfe8 {[%emt 0:07:11]} 22. Nd5 {[%emt 0:01:30]} Re6 {[%emt 0:00:39]} 23. Nxf6+ {[%emt 0:03:30]} Rxf6 {[%emt 0:00:30]} 24. Qxf6 {[%emt 0:00:30]} Qxc2 {[%emt 0:01:33]} 25. Qxd6 {[%emt 0:00:30]} Qxb2 {[%emt 0:03:57]} 26. Re1 {[%emt 0:01:30]} Rc8 {[%emt 0:02:03]} 27. Bh5 {[%emt 0:01:29]} Qf2 {[%emt 0:06:38]} 28. Rd1 {[%emt 0:01:51]} Ng6 {[%emt 0:01:19]} 29. Qd7 {[%emt 0:01:36]} Rc2 {[%emt 0:00:47]} 30. Qg4 {[%emt 0:00:40]} Kg7 {[%emt 0:02:26]} 31. h3 {[%emt 0:01:58]} b5 {[%emt 0:00:58]} 32. axb5 {[%emt 0:01:18]} axb5 {[%emt 0:00:30]} 33. e5 {[%emt 0:00:00]} b4 {[%emt 0:01:13]} 34. e6 {[%emt 0:00:21]} fxe6 {[%emt 0:00:27]} 35. Rd7+ {[%emt 0:01:40]} Kf6 {[%emt 0:00:13]} 36. Bxg6 {[%emt 0:00:54]} hxg6 {[%emt 0:00:38]} 37. Rd3 {[%emt 0:00:12]} Qf1+ {[%emt 0:01:04]} 38. Kh2 {[%emt 0:00:07]} Qxd3 {[%emt 0:00:12]} 39. Qf4+ {[%emt 0:00:04]} Qf5 {[%emt 0:00:34]} 40. Qh4+ {[%emt 0:00:00]} Kg7 {[%emt 0:00:53]} 41. Qd4+ {[%emt 0:00:20]} e5 {[%emt 0:00:45]} 0-1

[Event "World Junior U20 Girls 2018"]
[Site "Gebze"]
[Date "2018.09.07"]
[Round "3"]
[White "Koljevic, Nikolina"]
[Black "Rousseau, Christilla"]
[Result "1-0"]
[ECO "C14"]
[WhiteElo "1898"]
[BlackElo "1677"]
[Annotator "NA"]
[PlyCount "95"]
[EventDate "2018.09.05"]
[EventType "swiss"]
[EventCountry "TUR"]
[SourceTitle "playchess.com"]
[Source "ChessBase"]
[SourceQuality "1"]
[TimeControl "40/5400+30:1800+30"]

1. e4 {[%emt 0:00:30]} e6 {[%emt 0:00:30]} 2. d4 {[%emt 0:00:30]} d5 {[%emt 0:00:00]} 3. Nc3 {[%emt 0:00:00]} Nf6 {[%emt 0:01:00]} 4. Bg5 {[%emt 0:00:00]} Be7 {[%emt 0:00:00]} 5. e5 {[%emt 0:00:00]} Nfd7 {[%emt 0:00:00]} 6. Bxe7 {[%emt 0:00:00]} Qxe7 {[%emt 0:00:30]} 7. f4 {[%emt 0:00:30]} a6 {[%emt 0:00:30]} 8. Nf3 {[%emt 0:00:00]} c5 {[%emt 0:02:30]} 9. Qd2 {[%emt 0:00:00]} Nc6 {[%emt 0:02:30]} 10. dxc5 {[%emt 0:00:30]} Qxc5 {[%emt 0:07:30]} 11. Bd3 {[%emt 0:03:30]} b5 $11 {[%emt 0:08:30]} 12. a3 Bb7 13. Qf2 {[%emt 0:13:30]} Qxf2+ {[%emt 0:36:30]} 14. Kxf2 {[%emt 0:00:30]} Rc8 {[%emt 0:00:30]} 15. Ne2 {[%emt 0:01:30]} O-O {[%emt 0:17:30]} 16. Ned4 {[%emt 0:02:30]} Nxd4 {[%emt 0:08:30]} 17. Nxd4 {[%emt 0:00:30]} Nc5 {[%emt 0:09:30]} 18. Rac1 {[%emt 0:06:30]} Rc7 {[%emt 0:02:30]} 19. Ke3 {[%emt 0:04:30]} Rfc8 {[%emt 0:04:30]} 20. Kd2 {[%emt 0:02:30]} Nxd3 {[%emt 0:09:33]} 21. cxd3 {[%emt 0:00:00]} Kf8 {[%emt 0:00:00]} 22. Rxc7 {[%emt 0:03:00]} Rxc7 {[%emt 0:00:00]} 23. Rc1 {[%emt 0:00:00]} Rxc1 {[%emt 0:00:31]} 24. Kxc1 {[%emt 0:00:00]} Ke7 {[%emt 0:00:00]} 25. Kd2 {[%emt 0:00:30]} f6 {[%emt 0:01:53]} 26. Kc3 {[%emt 0:02:30]} fxe5 {[%emt 0:00:54]} 27. fxe5 {[%emt 0:00:30]} Kf7 {[%emt 0:00:30]} 28. Kb4 {[%emt 0:00:30]} Kg6 {[%emt 0:00:30]} 29. Kc5 {[%emt 0:00:30]} Kg5 {[%emt 0:00:30]} 30. Kb6 {[%emt 0:00:30]} Bc8 {[%emt 0:00:30]} 31. Kc7 {[%emt 0:00:30]} Kf4 {[%emt 0:00:30]} 32. Kxc8 {[%emt 0:00:30]} Kxe5 {[%emt 0:00:30]} 33. Ne2 {[%emt 0:03:30]} d4 {[%emt 0:00:36]} 34. Kd7 {[%emt 0:01:30]} g5 {[%emt 0:00:59]} 35. g4 {[%emt 0:00:30]} Kd5 {[%emt 0:00:30]} 36. b4 {[%emt 0:00:30]} e5 {[%emt 0:01:03]} 37. Ng3 {[%emt 0:00:30]} e4 {[%emt 0:02:06]} 38. Nxe4 {[%emt 0:00:30]} Ke5 {[%emt 0:00:49]} 39. Nxg5 {[%emt 0:01:00]} Kf4 {[%emt 0:00:45]} 40. Nxh7 {[%emt 0:02:30]} Ke3 {[%emt 0:00:49]} 41. g5 {[%emt 0:02:00]} Kxd3 {[%emt 0:01:29]} 42. g6 {[%emt 0:00:30]} Ke2 43. g7 d3 44. g8=Q d2 45. Qg4+ Ke1 46. Qe4+ Kd1 47. Ng5 Kc1 48. Qd3 1-0

[Event "World Junior U20 Girls 2018"]
[Site "Gebze"]
[Date "2018.09.07"]
[Round "3"]
[White "Bail, Ellen Larissa"]
[Black "Anandpara Jayendra Saloni"]
[Result "1-0"]
[ECO "E65"]
[WhiteElo "1832"]
[BlackElo "1326"]
[Annotator "NA"]
[PlyCount "99"]
[EventDate "2018.09.05"]
[EventType "swiss"]
[EventCountry "TUR"]
[SourceTitle "playchess.com"]
[Source "ChessBase"]
[SourceQuality "1"]
[TimeControl "40/5400+30:1800+30"]

1. Nf3 Nf6 2. c4 g6 3. b3 Bg7 4. Bb2 O-O 5. g3 d6 6. d4 c5 7. Bg2 Qc7 8. O-O cxd4 9. Nxd4 Nc6 10. Nc3 a6 11. Rc1 Nxd4 12. Qxd4 {[%emt 0:18:00]} e5 {[%emt 0:33:00]} 13. Nd5 {[%emt 0:15:30]} Nxd5 {[%emt 0:16:30]} 14. Qxd5 {[%emt 0:00:30]} Rb8 {[%emt 0:02:30]} 15. Rfd1 {[%emt 0:01:30]} Rd8 {[%emt 0:00:30]} 16. Ba3 {[%emt 0:10:30]} Bf8 {[%emt 0:01:30]} 17. Bb4 {[%emt 0:01:30]} Be6 {[%emt 0:02:30]} 18. Qd2 {[%emt 0:01:30]} b6 {[%emt 0:06:30]} 19. Bd5 {[%emt 0:03:30]} Qe7 {[%emt 0:05:30]} 20. Rc2 {[%emt 0:06:30]} Bxd5 {[%emt 0:01:30]} 21. cxd5 {[%emt 0:01:30]} f5 {[%emt 0:00:30]} 22. Rdc1 {[%emt 0:00:30]} Qe8 {[%emt 0:06:30]} 23. Rc6 {[%emt 0:09:30]} Qd7 {[%emt 0:05:10]} 24. Rc7 {[%emt 0:04:30]} Qe8 {[%emt 0:00:36]} 25. R1c6 {[%emt 0:01:30]} Rbc8 {[%emt 0:01:46]} 26. Rxc8 {[%emt 0:06:30]} Rxc8 {[%emt 0:00:20]} 27. Rxb6 {[%emt 0:06:35]} Qd8 {[%emt 0:01:15]} 28. Rxa6 {[%emt 0:01:11]} Ra8 {[%emt 0:00:18]} 29. Rxa8 {[%emt 0:02:34]} Qxa8 {[%emt 0:00:09]} 30. a3 {[%emt 0:01:28]} Kf7 {[%emt 0:01:59]} 31. Qd3 {[%emt 0:00:20]} Qc8 {[%emt 0:01:40]} 32. Qc4 {[%emt 0:00:22]} Qxc4 {[%emt 0:00:56]} 33. bxc4 {[%emt 0:00:07]} Be7 {[%emt 0:00:42]} 34. Kf1 {[%emt 0:01:04]} e4 {[%emt 0:00:13]} 35. Ke1 {[%emt 0:00:18]} Ke8 {[%emt 0:00:45]} 36. Kd2 {[%emt 0:01:39]} Kd7 {[%emt 0:00:30]} 37. f3 {[%emt 0:00:12]} Bg5+ {[%emt 0:00:19]} 38. Kc2 {[%emt 0:01:10]} Be3 {[%emt 0:01:12]} 39. fxe4 {[%emt 0:00:53]} fxe4 {[%emt 0:00:12]} 40. g4 {[%emt 0:00:00]} h5 {[%emt 0:00:00]} 41. h3 {[%emt 0:04:37]} Kc7 {[%emt 0:08:28]} 42. Kb3 {[%emt 0:00:30]} Bf4 {[%emt 0:01:30]} 43. c5 {[%emt 0:00:30]} dxc5 {[%emt 0:00:30]} 44. Bxc5 {[%emt 0:00:30]} Bd6 {[%emt 0:00:00]} 45. Kc4 {[%emt 0:00:30]} Be5 {[%emt 0:03:00]} 46. a4 {[%emt 0:00:30]} hxg4 {[%emt 0:00:30]} 47. hxg4 {[%emt 0:00:00]} Kd7 {[%emt 0:00:30]} 48. a5 {[%emt 0:00:00]} Bb8 {[%emt 0:01:30]} 49. Kd4 {[%emt 0:00:30]} Bc7 {[%emt 0:00:30]} 50. a6 {[%emt 0:00:30]} 1-0

[Event "World Junior U20 Girls 2018"]
[Site "Gebze"]
[Date "2018.09.07"]
[Round "3"]
[White "Duran, Esma Doga"]
[Black "Auvray, Honorine"]
[Result "1/2-1/2"]
[ECO "B06"]
[WhiteElo "1825"]
[BlackElo "2050"]
[Annotator "NA"]
[PlyCount "95"]
[EventDate "2018.09.05"]
[EventType "swiss"]
[EventCountry "TUR"]
[SourceTitle "playchess.com"]
[Source "ChessBase"]
[SourceQuality "1"]
[TimeControl "40/5400+30:1800+30"]

1. d4 g6 2. e4 Bg7 3. Nc3 d6 4. h3 a6 5. a4 Nc6 6. Nf3 Nf6 7. d5 Nb8 8. Be3 O-O 9. Be2 {[%emt 0:19:30]} e5 {[%emt 0:34:30]} 10. Qd2 {[%emt 0:12:30]} Ne8 {[%emt 0:10:30]} 11. g4 {[%emt 0:02:30]} c5 {[%emt 0:04:30]} 12. Bd3 {[%emt 0:21:30]} Qa5 {[%emt 0:09:30]} 13. Ne2 {[%emt 0:04:30]} Qc7 {[%emt 0:00:30]} 14. c4 {[%emt 0:03:30]} Qe7 {[%emt 0:04:30]} 15. Nc3 {[%emt 0:14:04]} b6 {[%emt 0:01:30]} 16. O-O-O {[%emt 0:02:15]} Bd7 {[%emt 0:01:30]} 17. Qe2 {[%emt 0:01:26]} Nc7 {[%emt 0:00:30]} 18. Kc2 {[%emt 0:00:33]} Rc8 {[%emt 0:01:30]} 19. Ra1 {[%emt 0:00:42]} Qe8 {[%emt 0:00:30]} 20. Nd2 {[%emt 0:01:06]} Ra7 {[%emt 0:04:30]} 21. h4 {[%emt 0:08:20]} Rb7 {[%emt 0:01:30]} 22. h5 {[%emt 0:01:26]} b5 {[%emt 0:04:30]} 23. a5 {[%emt 0:00:40]} Qe7 {[%emt 0:03:25]} 24. hxg6 {[%emt 0:02:56]} fxg6 {[%emt 0:00:16]} 25. Raf1 {[%emt 0:02:50]} Rf8 {[%emt 0:11:11]} 26. f4 {[%emt 0:00:38]} exf4 {[%emt 0:01:06]} 27. Bxf4 {[%emt 0:00:10]} g5 {[%emt 0:06:04]} 28. Bg3 {[%emt 0:00:46]} Rxf1 {[%emt 0:00:45]} 29. Nxf1 {[%emt 0:01:12]} bxc4 {[%emt 0:00:48]} 30. Bxc4 {[%emt 0:00:02]} Bb5 {[%emt 0:00:37]} 31. Nd2 {[%emt 0:00:48]} h6 {[%emt 0:00:26]} 32. Rf1 {[%emt 0:01:25]} Ne8 {[%emt 0:00:47]} 33. Nxb5 {[%emt 0:00:16]} axb5 {[%emt 0:00:00]} 34. Bxb5 {[%emt 0:00:49]} Nc7 {[%emt 0:00:00]} 35. Bc4 {[%emt 0:00:25]} Rxb2+ {[%emt 0:00:10]} 36. Kc1 {[%emt 0:00:09]} Bc3 {[%emt 0:00:49]} 37. Qd3 {[%emt 0:00:23]} Qg7 {[%emt 0:01:02]} 38. Nf3 {[%emt 0:00:56]} Ne8 {[%emt 0:01:11]} 39. e5 {[%emt 0:00:15]} Rg2 {[%emt 0:00:02]} 40. Qxc3 {[%emt 0:00:00]} Rxg3 {[%emt 0:00:00]} 41. Qb2 {[%emt 0:24:13]} Rxg4 {[%emt 0:11:51]} 42. Nd2 {[%emt 0:03:57]} Nd7 {[%emt 0:04:59]} 43. e6 {[%emt 0:02:55]} Ne5 {[%emt 0:00:26]} 44. Qb5 {[%emt 0:01:10]} Nc7 {[%emt 0:03:07]} 45. Qb8+ {[%emt 0:00:30]} Kh7 {[%emt 0:00:30]} 46. Rf7 {[%emt 0:00:31]} Rxc4+ {[%emt 0:02:44]} 47. Nxc4 {[%emt 0:00:48]} Nxf7 {[%emt 0:00:09]} 48. Qxc7 {[%emt 0:00:18]} 1/2-1/2

[Event "World Junior U20 Girls 2018"]
[Site "Gebze"]
[Date "2018.09.07"]
[Round "3"]
[White "Caxita, Esperanca"]
[Black "Heydarova, Aytaj"]
[Result "0-1"]
[ECO "B72"]
[WhiteElo "1803"]
[BlackElo "1948"]
[Annotator "NA"]
[PlyCount "62"]
[EventDate "2018.09.05"]
[EventType "swiss"]
[EventCountry "TUR"]
[SourceTitle "playchess.com"]
[Source "ChessBase"]
[SourceQuality "1"]
[TimeControl "40/5400+30:1800+30"]

1. e4 c5 2. Nf3 d6 3. Nc3 Nf6 4. d4 cxd4 5. Nxd4 g6 6. Be2 Bg7 7. Be3 Nc6 8. Qd2 O-O 9. O-O-O Nxd4 10. Bxd4 Be6 11. h4 Qa5 12. Qg5 Qc7 13. h5 {[%emt 0:19:30]} Rac8 {[%emt 0:35:30]} 14. Qd2 {[%emt 0:12:30]} Nxe4 {[%emt 0:14:30]} 15. Nxe4 {[%emt 0:03:30]} Bxd4 {[%emt 0:00:00]} 16. Kb1 {[%emt 0:09:30]} Bg7 {[%emt 0:02:00]} 17. hxg6 {[%emt 0:03:30]} hxg6 {[%emt 0:03:30]} 18. Bd3 {[%emt 0:02:30]} Qb6 {[%emt 0:03:30]} 19. Qc1 {[%emt 0:10:30]} Qa5 {[%emt 0:07:30]} 20. a3 {[%emt 0:01:30]} Rc6 {[%emt 0:00:30]} 21. Qg5 {[%emt 0:04:30]} Qb6 {[%emt 0:16:34]} 22. c3 {[%emt 0:09:30]} d5 {[%emt 0:07:33]} 23. Qh4 {[%emt 0:08:25]} Rfc8 {[%emt 0:00:51]} 24. Ng5 {[%emt 0:02:15]} Rxc3 {[%emt 0:02:08]} 25. Qb4 {[%emt 0:02:00]} Qxb4 {[%emt 0:01:00]} 26. axb4 {[%emt 0:00:07]} Rb3 {[%emt 0:00:50]} 27. Rd2 {[%emt 0:00:30]} Bd7 {[%emt 0:00:54]} 28. b5 {[%emt 0:03:58]} Bxb5 {[%emt 0:01:51]} 29. Bxb5 {[%emt 0:00:30]} Rxb5 {[%emt 0:00:00]} 30. Rh3 {[%emt 0:00:00]} Rc4 {[%emt 0:01:14]} 31. Ra3 {[%emt 0:04:01]} Bh6 {[%emt 0:01:27]} 0-1

[Event "World Junior U20 Girls 2018"]
[Site "Gebze"]
[Date "2018.09.07"]
[Round "3"]
[White "Anacoglu, Cisel"]
[Black "Koo, Wei Xin Rosamund"]
[Result "1-0"]
[ECO "B27"]
[WhiteElo "1791"]
[BlackElo "1918"]
[Annotator "NA"]
[PlyCount "87"]
[EventDate "2018.09.05"]
[EventType "swiss"]
[EventCountry "TUR"]
[SourceTitle "playchess.com"]
[Source "ChessBase"]
[SourceQuality "1"]
[TimeControl "40/5400+30:1800+30"]

1. e4 c5 2. Nf3 g6 3. d4 cxd4 4. Qxd4 Nf6 $11 5. Nc3 {LiveBook: 313 Games} Nc6 6. Qa4 d6 7. e5 dxe5 8. Nxe5 Qd4 9. Nxc6 Qxa4 10. Nxa4 bxc6 11. b3 Bf5 12. Bb2 Bg7 13. O-O-O O-O {[%emt 0:28:30]} 14. Bd3 {[%emt 0:23:00]} Bxd3 {[%emt 0:15:30]} 15. Rxd3 {[%emt 0:00:30]} Bh6+ {[%emt 0:00:30]} 16. Kb1 {[%emt 0:00:30]} Ne4 {[%emt 0:02:30]} 17. Re1 {[%emt 0:03:30]} Nxf2 {[%emt 0:14:30]} 18. Rf3 {[%emt 0:00:30]} Ng4 {[%emt 0:01:30]} 19. h3 {[%emt 0:00:30]} Nf6 {[%emt 0:02:30]} 20. Ba3 {[%emt 0:36:30]} Rfe8 {[%emt 0:00:30]} 21. Rxe7 {[%emt 0:00:30]} Nd5 {[%emt 0:00:30]} 22. Rxe8+ {[%emt 0:00:30]} Rxe8 {[%emt 0:00:30]} 23. c4 {[%emt 0:00:30]} Re1+ {[%emt 0:00:30]} 24. Kc2 {[%emt 0:00:30]} Ne3+ {[%emt 0:06:30]} 25. Kd3 {[%emt 0:06:30]} Nxg2 {[%emt 0:01:30]} 26. Bc5 {[%emt 0:04:30]} Re6 {[%emt 0:03:30]} 27. Rf2 {[%emt 0:05:30]} Nf4+ {[%emt 0:02:30]} 28. Kc2 {[%emt 0:00:30]} a6 {[%emt 0:02:30]} 29. Rd2 {[%emt 0:09:46]} Re2 {[%emt 0:00:30]} 30. Bb4 {[%emt 0:00:17]} Rxd2+ {[%emt 0:02:12]} 31. Bxd2 {[%emt 0:00:30]} g5 {[%emt 0:00:18]} 32. Bxf4 {[%emt 0:02:20]} gxf4 {[%emt 0:00:30]} 33. Nc5 {[%emt 0:00:00]} f3 {[%emt 0:01:04]} 34. Kd3 {[%emt 0:00:00]} Kg7 {[%emt 0:01:03]} 35. Nxa6 {[%emt 0:00:02]} Kg6 {[%emt 0:04:18]} 36. Nb8 {[%emt 0:00:41]} Kh5 {[%emt 0:03:29]} 37. Nxc6 {[%emt 0:02:12]} Kh4 {[%emt 0:00:12]} 38. Ne5 {[%emt 0:03:18]} Kg3 {[%emt 0:00:33]} 39. Nxf3 {[%emt 0:04:00]} Kxf3 {[%emt 0:00:04]} 40. c5 {[%emt 0:00:00]} Bf8 {[%emt 0:00:00]} 41. c6 {[%emt 0:06:24]} Bd6 {[%emt 0:07:17]} 42. a4 {[%emt 0:00:30]} Bc7 {[%emt 0:01:30]} 43. b4 {[%emt 0:00:30]} f5 {[%emt 0:02:30]} 44. a5 {[%emt 0:00:30]} 1-0

[Event "World Junior U20 Girls 2018"]
[Site "Gebze"]
[Date "2018.09.07"]
[Round "3"]
[White "De Silva, Tenara"]
[Black "Gomez Barrera, Javiera Belen"]
[Result "1-0"]
[ECO "C45"]
[WhiteElo "1764"]
[BlackElo "2035"]
[Annotator "NA"]
[PlyCount "103"]
[EventDate "2018.09.05"]
[EventType "swiss"]
[EventCountry "TUR"]
[SourceTitle "playchess.com"]
[Source "ChessBase"]
[SourceQuality "1"]
[TimeControl "40/5400+30:1800+30"]

1. e4 e5 2. Nf3 Nc6 3. d4 exd4 4. Nxd4 Bc5 $14 5. Nb3 Bb6 6. Nc3 Nf6 7. Bg5 a5 8. Bb5 h6 9. Bh4 O-O {[%emt 0:33:30]} 10. f3 {[%emt 0:20:00]} g5 {[%emt 0:22:30]} 11. Bf2 {[%emt 0:02:30]} Bxf2+ {[%emt 0:06:30]} 12. Kxf2 {[%emt 0:00:30]} Ne5 {[%emt 0:04:30]} 13. Qd4 {[%emt 0:05:30]} d6 {[%emt 0:02:30]} 14. Be2 {[%emt 0:04:30]} a4 {[%emt 0:05:30]} 15. Nd2 {[%emt 0:09:30]} Be6 {[%emt 0:02:30]} 16. Nf1 {[%emt 0:01:30]} c5 {[%emt 0:06:20]} 17. Qd2 {[%emt 0:01:30]} d5 {[%emt 0:02:49]} 18. exd5 {[%emt 0:02:30]} Nxd5 {[%emt 0:00:37]} 19. Nxd5 {[%emt 0:00:30]} Qxd5 {[%emt 0:00:28]} 20. Qxd5 {[%emt 0:00:30]} Bxd5 {[%emt 0:00:02]} 21. Ne3 {[%emt 0:00:00]} Be6 {[%emt 0:00:13]} 22. h4 {[%emt 0:01:00]} Kg7 {[%emt 0:12:19]} 23. hxg5 {[%emt 0:07:30]} hxg5 {[%emt 0:00:30]} 24. Rh5 {[%emt 0:00:30]} Kf6 {[%emt 0:00:30]} 25. a3 {[%emt 0:00:30]} Rh8 {[%emt 0:00:30]} 26. Rxh8 {[%emt 0:00:30]} Rxh8 {[%emt 0:00:30]} 27. Rd1 {[%emt 0:00:30]} Rc8 {[%emt 0:00:30]} 28. Bb5 {[%emt 0:00:30]} Ra8 {[%emt 0:00:30]} 29. Nd5+ {[%emt 0:00:30]} Bxd5 {[%emt 0:00:30]} 30. Rxd5 {[%emt 0:01:30]} Ra5 {[%emt 0:00:31]} 31. Rd6+ {[%emt 0:01:30]} Ke7 {[%emt 0:00:42]} 32. Rb6 {[%emt 0:00:30]} Ra7 {[%emt 0:00:14]} 33. Ke3 {[%emt 0:00:30]} Ng6 {[%emt 0:00:40]} 34. Ke4 {[%emt 0:03:30]} Nf4 {[%emt 0:00:17]} 35. g4 {[%emt 0:00:00]} Ne6 {[%emt 0:00:18]} 36. Bc4 {[%emt 0:07:00]} Nd4 {[%emt 0:00:45]} 37. c3 {[%emt 0:00:30]} Nc6 {[%emt 0:00:19]} 38. Bd5 {[%emt 0:01:30]} Kd6 {[%emt 0:00:33]} 39. Rb5 {[%emt 0:03:30]} f6 {[%emt 0:00:32]} 40. c4 {[%emt 0:00:00]} Nd8 {[%emt 0:00:00]} 41. Kf5 {[%emt 0:02:00]} Ke7 {[%emt 0:10:51]} 42. Rxc5 {[%emt 0:00:30]} b6 {[%emt 0:00:30]} 43. Rb5 {[%emt 0:00:30]} Ra6 {[%emt 0:00:00]} 44. Kg6 {[%emt 0:00:30]} Ne6 {[%emt 0:01:00]} 45. Bxe6 {[%emt 0:00:30]} Kxe6 {[%emt 0:00:30]} 46. Rf5 {[%emt 0:00:30]} Ra8 {[%emt 0:00:30]} 47. Rxf6+ {[%emt 0:00:30]} Ke5 {[%emt 0:00:30]} 48. Kxg5 {[%emt 0:01:30]} Rg8+ {[%emt 0:00:30]} 49. Rg6 {[%emt 0:00:00]} Rf8 {[%emt 0:00:30]} 50. f4+ {[%emt 0:00:00]} Ke4 {[%emt 0:00:00]} 51. Rxb6 {[%emt 0:00:00]} Rxf4 {[%emt 0:01:00]} 52. Rf6 {[%emt 0:00:00]} 1-0